[Event "7th Iberoamerican-ch 2019"]
[Site "Linares"]
[Date "2019.08.12"]
[Round "3.20"]
[White "Rodriguez Perez, Angel Mariano"]
[Black "Roselli Mailhe, Bernardo"]
[Result "1-0"]
[ECO "B23"]
[WhiteElo "2223"]
[BlackElo "2471"]
[Annotator "ChessBase"]
[PlyCount "103"]
[EventDate "2019.08.10"]
[EventType "swiss"]
[EventCountry "ESP"]
[SourceTitle "playchess.com"]
[Source "ChessBase"]
[SourceQuality "1"]
[TimeControl "5400+30"]

1. e4 {[%emt 0:00:00]} c5 {[%emt 0:00:00]} 2. Nc3 {[%emt 0:00:00]} e6 {[%emt 0:00:00]} 3. g3 {[%emt 0:01:05]} Nc6 {[%emt 0:00:13]} 4. Bg2 {[%emt 0:00:34]} Nf6 {[%emt 0:00:26]} 5. Nge2 {[%emt 0:00:33]} d5 {[%emt 0:00:46]} 6. exd5 {[%emt 0:00:39]} exd5 {[%emt 0:00:08]} 7. d4 {[%emt 0:00:32]} cxd4 {[%emt 0:06:15]} 8. Nxd4 {[%emt 0:02:34]} Be7 {[%emt 0:03:33]} 9. O-O {[%emt 0:00:36]} O-O {[%emt 0:00:14]} 10. h3 {[%emt 0:00:55]} a6 {[%emt 0:12:52]} 11. Nce2 {[%emt 0:02:53]} Re8 {[%emt 0:07:35]} 12. c3 {[%emt 0:00:19]} Ne4 {[%emt 0:06:09]} 13. Nf4 {[%emt 0:12:06]} Bf6 {[%emt 0:07:19]} 14. Nb3 {[%emt 0:11:02]} Ne7 {[%emt 0:07:09]} 15. Be3 {[%emt 0:05:33]} Nf5 {[%emt 0:08:54]} 16. Bd4 {[%emt 0:07:29]} Nxd4 {[%emt 0:02:11]} 17. Nxd4 {[%emt 0:00:11]} Be5 {[%emt 0:02:34]} 18. Nde2 {[%emt 0:02:26]} Nf6 {[%emt 0:02:19]} 19. Qb3 {[%emt 0:04:39]} Be6 {[%emt 0:13:12]} 20. Nxe6 {[%emt 0:02:06]} Rxe6 {[%emt 0:00:34]} 21. Rfe1 {[%emt 0:04:45]} Rb6 {[%emt 0:01:22]} 22. Qc2 {[%emt 0:01:21]} Qd7 {[%emt 0:00:09]} 23. Rab1 {[%emt 0:04:17]} Re8 {[%emt 0:00:48]} 24. Qd2 {[%emt 0:02:20]} Rbe6 {[%emt 0:02:36]} 25. Kh2 {[%emt 0:02:27]} Qe7 {[%emt 0:00:53]} 26. Red1 {[%emt 0:04:29]} h5 {[%emt 0:02:32]} 27. Nf4 {[%emt 0:01:00]} Rd6 {[%emt 0:04:34]} 28. Nxd5 {[%emt 0:02:19]} Nxd5 {[%emt 0:00:14]} 29. Bxd5 {[%emt 0:00:06]} h4 {[%emt 0:00:18]} 30. c4 {[%emt 0:01:39]} hxg3+ {[%emt 0:05:09]} 31. fxg3 {[%emt 0:00:04]} Qh4 {[%emt 0:00:12]} 32. Qg2 {[%emt 0:02:21]} Rg6 {[%emt 0:01:15]} 33. Rd3 {[%emt 0:01:14]} Bc7 {[%emt 0:01:01]} 34. Rf1 {[%emt 0:01:28]} Rf6 {[%emt 0:00:53]} 35. Rxf6 {[%emt 0:01:27]} gxf6 {[%emt 0:00:06]} 36. Bxf7+ {[%emt 0:02:01]} Kxf7 {[%emt 0:00:06]} 37. Rd7+ {[%emt 0:00:05]} Kg6 {[%emt 0:00:13]} 38. Rxc7 {[%emt 0:00:15]} Qd4 {[%emt 0:00:05]} 39. Qc2+ {[%emt 0:00:55]} f5 {[%emt 0:00:06]} 40. Rxb7 {[%emt 0:01:40]} Re1 {[%emt 0:01:22]} 41. Qg2 {[%emt 0:01:14]} Re6 {[%emt 0:01:12]} 42. Rc7 {[%emt 0:01:56]} Qd6 {[%emt 0:00:57]} 43. Rc8 {[%emt 0:01:12]} Qd7 {[%emt 0:00:46]} 44. Rc5 {[%emt 0:00:28]} Qe8 {[%emt 0:01:45]} 45. Qf3 {[%emt 0:01:50]} Re2+ {[%emt 0:00:13]} 46. Kg1 {[%emt 0:00:28]} Qe4 {[%emt 0:00:01]} 47. Rc6+ {[%emt 0:01:56]} Kg7 {[%emt 0:00:08]} 48. Qxe4 {[%emt 0:00:10]} fxe4 {[%emt 0:00:04]} 49. Rxa6 {[%emt 0:00:52]} Kf7 {[%emt 0:00:02]} 50. b4 {[%emt 0:00:44]} e3 {[%emt 0:00:19]} 51. Kf1 {[%emt 0:00:26]} Rb2 {[%emt 0:00:29]} 52. a3 {[%emt 0:00:18]} 1-0

[Event "7th Iberoamerican-ch 2019"]
[Site "Linares"]
[Date "2019.08.12"]
[Round "3.22"]
[White "Perera Borrego, Maria Adela"]
[Black "Fluvia Poyatos, Jordi"]
[Result "0-1"]
[ECO "D02"]
[WhiteElo "2179"]
[BlackElo "2455"]
[Annotator "RC"]
[PlyCount "162"]
[EventDate "2019.08.10"]
[EventType "swiss"]
[EventCountry "ESP"]
[SourceTitle "playchess.com"]
[Source "ChessBase"]
[SourceQuality "1"]
[TimeControl "5400+30"]

1. d4 {[%emt 0:00:00]} d5 {[%emt 0:00:00]} 2. Nf3 {[%emt 0:00:00]} Nc6 {[%emt 0:01:31]} 3. e3 {[%emt 0:02:04]} Bg4 {[%emt 0:04:21]} 4. h3 {[%emt 0:00:22]} Bxf3 {[%emt 0:07:41]} 5. Qxf3 {[%emt 0:02:00]} e5 {[%emt 0:00:28]} 6. Qd1 {[%emt 0:06:42]} exd4 {[%emt 0:07:46]} 7. exd4 {[%emt 0:00:23]} Qf6 {[%emt 0:01:00]} 8. c3 {[%emt 0:01:42]} Bd6 {[%emt 0:00:14]} 9. Be2 {[%emt 0:02:45]} Nge7 {[%emt 0:01:24]} 10. Nd2 {[%emt 0:02:40]} g5 {[%emt 0:02:41]} 11. Nf1 {[%emt 0:02:23]} Nf5 {[%emt 0:10:57]} 12. Ne3 {[%emt 0:01:15]} Nce7 {[%emt 0:01:29]} 13. Qd3 {[%emt 0:06:14]} Nxe3 {[%emt 0:02:16]} 14. Bxe3 {[%emt 0:00:36]} O-O-O {[%emt 0:00:40]} 15. O-O-O {[%emt 0:01:01]} Kb8 {[%emt 0:01:24]} 16. g3 {[%emt 0:10:35]} Nf5 {[%emt 0:02:02]} 17. Bd2 {[%emt 0:00:32]} Ne7 {[%emt 0:05:17]} 18. Rdf1 {[%emt 0:05:17]} Ng6 {[%emt 0:05:15]} 19. Kb1 {[%emt 0:01:13]} c6 {[%emt 0:00:56]} 20. Be3 {[%emt 0:05:42]} Rde8 {[%emt 0:01:38]} 21. Bc1 {[%emt 0:01:38]} h5 {[%emt 0:05:19]} 22. Bd1 {[%emt 0:04:23]} h4 {[%emt 0:02:21]} 23. b4 {[%emt 0:02:01]} Ne7 {[%emt 0:06:41]} 24. Bc2 {[%emt 0:02:47]} Nc8 {[%emt 0:01:29]} 25. a4 {[%emt 0:01:15]} Bc7 {[%emt 0:00:54]} 26. Rhg1 {[%emt 0:08:50]} Reg8 {[%emt 0:01:24]} 27. f4 {[%emt 0:05:40]} gxf4 {[%emt 0:02:04]} 28. g4 {[%emt 0:00:46]} Re8 {[%emt 0:10:14]} 29. Qf3 {[%emt 0:03:51]} Re7 {[%emt 0:01:07]} 30. g5 {[%emt 0:05:44]} Qd6 {[%emt 0:00:45]} 31. Rg4 {[%emt 0:00:45]} Qe6 {[%emt 0:03:18]} 32. Bxf4 {[%emt 0:00:32]} Bxf4 {[%emt 0:00:35]} 33. Qxf4+ {[%emt 0:00:21]} Ka8 {[%emt 0:00:13]} 34. Qf6 {[%emt 0:04:38]} Qe2 {[%emt 0:02:39]} 35. Rgf4 {[%emt 0:05:04]} Rg8 {[%emt 0:01:56]} 36. a5 {[%emt 0:00:40]} a6 {[%emt 0:00:33]} 37. R4f3 {[%emt 0:01:53]} Qd2 {[%emt 0:01:33]} 38. Qf4 {[%emt 0:01:21]} Qxf4 {[%emt 0:01:56]} 39. Rxf4 {[%emt 0:00:01]} Nd6 {[%emt 0:00:29]} 40. Rf6 {[%emt 0:02:34]} Nb5 {[%emt 0:00:40]} 41. Rxf7 {[%emt 0:00:30]} Rxf7 {[%emt 0:00:07]} 42. Rxf7 {[%emt 0:00:02]} Rxg5 {[%emt 0:00:28]} 43. Bf5 {[%emt 0:01:57]} Rg1+ {[%emt 0:02:07]} 44. Kb2 {[%emt 0:00:30]} Rg2+ {[%emt 0:00:11]} 45. Kc1 {[%emt 0:00:28]} Rg3 {[%emt 0:00:13]} 46. Kd2 {[%emt 0:00:19]} Nxc3 47. Rh7 {[%emt 0:00:30]} Nb5 {[%emt 0:04:34]} 48. Rxh4 {[%emt 0:00:12]} Rf3 {[%emt 0:00:13]} 49. Be6 {[%emt 0:01:12]} Rf6 {[%emt 0:00:42]} 50. Bd7 {[%emt 0:00:19]} Rf7 {[%emt 0:00:05]} 51. Be6 {[%emt 0:00:30]} Rf6 {[%emt 0:00:03]} 52. Bd7 {[%emt 0:00:07]} Nd6 {[%emt 0:00:24]} 53. Rh8+ {[%emt 0:00:15]} Ka7 {[%emt 0:00:05]} 54. Rh7 {[%emt 0:00:23]} Kb8 {[%emt 0:00:28]} 55. h4 {[%emt 0:00:22]} Rf4 {[%emt 0:00:09]} 56. Ke3 {[%emt 0:01:20]} Re4+ {[%emt 0:00:04]} 57. Kd3 {[%emt 0:00:44]} Nb5 {[%emt 0:00:11]} 58. Rh8+ {[%emt 0:00:19]} Kc7 {[%emt 0:00:13]} 59. Bf5 {[%emt 0:00:09]} Rxd4+ {[%emt 0:00:55]} 60. Ke3 {[%emt 0:00:01]} Kd6 {[%emt 0:01:42]} 61. Rh6+ {[%emt 0:00:47]} Ke5 {[%emt 0:00:55]} 62. Bc8 {[%emt 0:00:24]} Re4+ {[%emt 0:00:14]} 63. Kd3 {[%emt 0:00:46]} Rxb4 {[%emt 0:00:34]} 64. Bxb7 {[%emt 0:00:51]} Rb3+ {[%emt 0:00:17]} 65. Kd2 {[%emt 0:00:10]} Nd6 {[%emt 0:01:42]} 66. Bxc6 {[%emt 0:00:18]} Ne4+ {[%emt 0:00:27]} 67. Kc2 {[%emt 0:00:56]} Rc3+ {[%emt 0:00:08]} 68. Kb2 {[%emt 0:00:06]} Rc5 {[%emt 0:00:05]} 69. Kb3 {[%emt 0:01:00]} Rxa5 {[%emt 0:01:13]} 70. Kb4 {[%emt 0:00:05]} Rc5 {[%emt 0:00:27]} 71. Rh5+ {[%emt 0:01:10]} Kf4 {[%emt 0:00:52]} 72. Bd7 {[%emt 0:00:36]} a5+ {[%emt 0:00:10]} 73. Kb3 {[%emt 0:00:10]} d4 {[%emt 0:00:28]} 74. Rh8 {[%emt 0:00:34]} d3 {[%emt 0:00:13]} 75. Rf8+ {[%emt 0:00:21]} Ke3 {[%emt 0:00:42]} 76. Bg4 {[%emt 0:00:20]} d2 {[%emt 0:00:27]} 77. h5 {[%emt 0:00:37]} Nf2 {[%emt 0:00:37]} 78. Re8+ {[%emt 0:00:36]} Kd4 {[%emt 0:00:51]} 79. Bf3 {[%emt 0:00:23]} Rc3+ {[%emt 0:00:11]} 80. Kb2 {[%emt 0:00:58]} Rxf3 {[%emt 0:00:08]} 81. Rd8+ {[%emt 0:00:27]} Ke3 {[%emt 0:00:05]} 0-1

[Event "7th Iberoamerican-ch 2019"]
[Site "Linares"]
[Date "2019.08.12"]
[Round "3.23"]
[White "Gines Esteo, Pedro Antonio"]
[Black "Romero Berruezo, Francisco"]
[Result "1/2-1/2"]
[ECO "D12"]
[WhiteElo "2404"]
[BlackElo "2161"]
[Annotator "NA"]
[PlyCount "136"]
[EventDate "2019.08.10"]
[EventType "swiss"]
[EventCountry "ESP"]
[SourceTitle "playchess.com"]
[Source "ChessBase"]
[SourceQuality "1"]
[TimeControl "5400+30"]

1. Nf3 {[%emt 0:00:04]} d5 {[%emt 0:00:03]} 2. e3 {[%emt 0:03:01]} Nf6 {[%emt 0:00:41]} 3. c4 {[%emt 0:00:05]} c6 {[%emt 0:01:08]} 4. d4 {[%emt 0:01:35]} Bf5 {[%emt 0:00:58]} 5. Nc3 {[%emt 0:00:06]} e6 {[%emt 0:00:12]} 6. Nh4 {[%emt 0:00:06]} Bg6 {[%emt 0:00:54]} 7. Qb3 {[%emt 0:02:31]} Qc7 {[%emt 0:01:55]} 8. Bd2 {[%emt 0:01:01]} Nbd7 {[%emt 0:01:09]} 9. Nxg6 {[%emt 0:03:04]} hxg6 {[%emt 0:00:20]} 10. g3 {[%emt 0:01:32]} Be7 {[%emt 0:01:37]} 11. Bg2 {[%emt 0:00:33]} O-O {[%emt 0:01:07]} 12. O-O {[%emt 0:00:59]} Qb6 {[%emt 0:04:24]} 13. Rfd1 {[%emt 0:17:14]} Rfe8 {[%emt 0:10:28]} 14. f4 {[%emt 0:01:39]} Reb8 {[%emt 0:30:33]} 15. Bf3 {[%emt 0:06:59]} Qd8 {[%emt 0:03:48]} 16. Qc2 {[%emt 0:10:50]} b5 {[%emt 0:02:01]} 17. b3 {[%emt 0:01:50]} bxc4 {[%emt 0:01:11]} 18. bxc4 {[%emt 0:00:05]} Nb6 {[%emt 0:00:36]} 19. c5 {[%emt 0:01:22]} Nc4 {[%emt 0:00:27]} 20. Na4 {[%emt 0:05:22]} Rb7 {[%emt 0:05:10]} 21. h4 {[%emt 0:11:28]} Rab8 {[%emt 0:01:56]} 22. Kg2 {[%emt 0:10:59]} Nb2 {[%emt 0:15:26]} 23. Re1 {[%emt 0:04:31]} Ne4 {[%emt 0:01:50]} 24. Re2 {[%emt 0:06:09]} Nxd2 {[%emt 0:03:37]} 25. Rxd2 {[%emt 0:00:01]} Qa5 {[%emt 0:03:19]} 26. Nxb2 {[%emt 0:00:56]} Qxd2+ {[%emt 0:02:04]} 27. Qxd2 {[%emt 0:08:39]} Rxb2 {[%emt 0:00:06]} 28. Rd1 {[%emt 0:00:43]} Bd8 {[%emt 0:00:27]} 29. Kf1 {[%emt 0:00:33]} Rxd2 {[%emt 0:00:05]} 30. Rxd2 {[%emt 0:00:02]} Rb1+ {[%emt 0:01:12]} 31. Bd1 {[%emt 0:00:47]} Kf8 {[%emt 0:00:48]} 32. Ke2 {[%emt 0:00:37]} Ke8 {[%emt 0:00:30]} 33. Bc2 {[%emt 0:00:32]} Rh1 {[%emt 0:01:19]} 34. Ba4 {[%emt 0:00:31]} Kd7 {[%emt 0:00:07]} 35. Kf3 {[%emt 0:00:21]} Rb1 {[%emt 0:01:07]} 36. Rh2 {[%emt 0:00:41]} Rf1+ {[%emt 0:00:46]} 37. Ke2 {[%emt 0:00:09]} Rb1 {[%emt 0:00:21]} 38. Kf3 {[%emt 0:00:00]} Rf1+ {[%emt 0:00:20]} 39. Ke2 {[%emt 0:01:18]} Rb1 {[%emt 0:00:10]} 40. Kf3 {[%emt 0:00:32]} Rf1+ {[%emt 0:00:22]} 41. Rf2 {[%emt 0:00:19]} Rxf2+ {[%emt 0:00:57]} 42. Kxf2 {[%emt 0:00:01]} f5 {[%emt 0:00:31]} 43. Kf3 {[%emt 0:01:04]} Be7 {[%emt 0:00:59]} 44. Bd1 {[%emt 0:00:25]} Bd8 {[%emt 0:00:09]} 45. Kf2 {[%emt 0:00:11]} Be7 {[%emt 0:00:16]} 46. Ke1 {[%emt 0:00:19]} Bd8 {[%emt 0:00:05]} 47. Ke2 {[%emt 0:00:04]} Be7 {[%emt 0:00:58]} 48. Kf2 {[%emt 0:00:09]} Bd8 {[%emt 0:00:16]} 49. Kg2 {[%emt 0:01:51]} Ba5 {[%emt 0:01:11]} 50. h5 {[%emt 0:00:36]} gxh5 {[%emt 0:00:23]} 51. Bxh5 {[%emt 0:00:06]} Bd8 {[%emt 0:01:00]} 52. g4 {[%emt 0:00:42]} fxg4 {[%emt 0:00:56]} 53. Kg3 {[%emt 0:00:41]} g5 {[%emt 0:00:34]} 54. Kxg4 {[%emt 0:00:24]} gxf4 {[%emt 0:00:05]} 55. Kxf4 {[%emt 0:00:06]} Bf6 {[%emt 0:01:28]} 56. Bg4 {[%emt 0:00:31]} Ke7 {[%emt 0:00:18]} 57. Bh3 {[%emt 0:00:37]} Bh4 {[%emt 0:00:42]} 58. Bg4 {[%emt 0:00:38]} Bf6 {[%emt 0:00:07]} 59. Bd1 {[%emt 0:00:43]} Kd7 {[%emt 0:02:01]} 60. Ba4 {[%emt 0:00:32]} Kc7 {[%emt 0:00:45]} 61. Kg4 {[%emt 0:00:24]} Kd7 {[%emt 0:00:18]} 62. Kf4 {[%emt 0:00:36]} Kc7 {[%emt 0:00:10]} 63. Bd1 {[%emt 0:00:14]} Kd7 {[%emt 0:00:06]} 64. Bg4 {[%emt 0:00:02]} Ke7 {[%emt 0:00:12]} 65. Kf3 {[%emt 0:00:21]} e5 {[%emt 0:00:47]} 66. dxe5 {[%emt 0:00:07]} Bxe5 {[%emt 0:00:04]} 67. e4 {[%emt 0:00:39]} dxe4+ {[%emt 0:00:16]} 68. Kxe4 {[%emt 0:00:02]} Bh2 {[%emt 0:00:24]} 1/2-1/2

[Event "7th Iberoamerican-ch 2019"]
[Site "Linares"]
[Date "2019.08.12"]
[Round "3.24"]
[White "Cori T., Deysi"]
[Black "Gomez Barrera, Javiera Belen"]
[Result "1-0"]
[ECO "A49"]
[WhiteElo "2405"]
[BlackElo "2156"]
[Annotator "NA"]
[PlyCount "67"]
[EventDate "2019.08.10"]
[EventType "swiss"]
[EventCountry "ESP"]
[SourceTitle "playchess.com"]
[Source "ChessBase"]
[SourceQuality "1"]
[TimeControl "5400+30"]

1. d4 {[%emt 0:00:00]} Nf6 {[%emt 0:00:00]} 2. Nf3 {[%emt 0:00:00]} g6 {[%emt 0:00:09]} 3. g3 {[%emt 0:00:05]} Bg7 {[%emt 0:00:06]} 4. Bg2 {[%emt 0:00:02]} O-O {[%emt 0:00:48]} 5. O-O {[%emt 0:00:06]} d6 {[%emt 0:00:10]} 6. b3 {[%emt 0:00:13]} e5 {[%emt 0:08:13]} 7. dxe5 {[%emt 0:00:46]} dxe5 {[%emt 0:01:11]} 8. Bb2 {[%emt 0:05:22]} e4 {[%emt 0:02:22]} 9. Nd4 {[%emt 0:01:00]} a6 {[%emt 0:19:41]} 10. b4 {[%emt 0:04:47]} Qe7 {[%emt 0:05:33]} 11. a3 {[%emt 0:03:31]} Nbd7 {[%emt 0:03:42]} 12. c4 {[%emt 0:06:09]} c5 {[%emt 0:10:35]} 13. Nb3 {[%emt 0:00:14]} Rd8 {[%emt 0:01:08]} 14. Qc2 {[%emt 0:02:42]} cxb4 {[%emt 0:04:59]} 15. axb4 {[%emt 0:00:02]} Ne5 {[%emt 0:01:05]} 16. Nc5 {[%emt 0:07:22]} Bf5 {[%emt 0:06:28]} 17. Qb3 {[%emt 0:04:59]} Nc6 {[%emt 0:03:59]} 18. Nc3 {[%emt 0:01:19]} a5 {[%emt 0:02:43]} 19. Rfc1 {[%emt 0:29:02]} Nxb4 {[%emt 0:07:43]} 20. N5a4 {[%emt 0:00:22]} Ra6 {[%emt 0:05:55]} 21. Nb5 {[%emt 0:02:14]} Ne8 {[%emt 0:12:03]} 22. Bxg7 {[%emt 0:01:22]} Nxg7 {[%emt 0:00:04]} 23. Qe3 {[%emt 0:00:21]} Rc6 {[%emt 0:01:21]} 24. h3 {[%emt 0:02:03]} Qe5 {[%emt 0:01:29]} 25. Rd1 {[%emt 0:10:50]} Re8 {[%emt 0:00:30]} 26. Qa7 {[%emt 0:01:46]} Ne6 {[%emt 0:00:30]} 27. Qxb7 {[%emt 0:01:25]} Nc5 {[%emt 0:00:31]} 28. Nxc5 {[%emt 0:00:49]} Qxc5 {[%emt 0:00:27]} 29. Rxa5 {[%emt 0:01:23]} Re7 {[%emt 0:00:32]} 30. Qb8+ {[%emt 0:04:11]} Kg7 {[%emt 0:00:26]} 31. Rd8 {[%emt 0:02:09]} Qxc4 {[%emt 0:00:32]} 32. Nd4 {[%emt 0:02:20]} Rc5 {[%emt 0:00:33]} 33. Rg8+ {[%emt 0:00:15]} Kf6 {[%emt 0:00:28]} 34. Qd6+ {[%emt 0:00:12]} 1-0

[Event "7th Iberoamerican-ch 2019"]
[Site "Linares"]
[Date "2019.08.12"]
[Round "3.25"]
[White "Rodriguez Del Cerro, Ricardo"]
[Black "Lopez Mulet, Inigo"]
[Result "1-0"]
[ECO "A37"]
[WhiteElo "2235"]
[BlackElo "2378"]
[Annotator "NA"]
[PlyCount "51"]
[EventDate "2019.08.10"]
[EventType "swiss"]
[EventCountry "ESP"]
[SourceTitle "playchess.com"]
[Source "ChessBase"]
[SourceQuality "1"]
[TimeControl "5400+30"]

1. Nf3 {[%emt 0:01:34]} c5 {[%emt 0:03:39]} 2. c4 {[%emt 0:00:41]} Nc6 {[%emt 0:00:35]} 3. Nc3 {[%emt 0:01:07]} g6 {[%emt 0:00:59]} 4. g3 {[%emt 0:02:17]} Bg7 {[%emt 0:00:31]} 5. Bg2 {[%emt 0:00:11]} d6 {[%emt 0:01:44]} 6. O-O {[%emt 0:01:31]} Bf5 {[%emt 0:05:28]} 7. b3 {[%emt 0:12:37]} Qd7 {[%emt 0:03:11]} 8. Bb2 {[%emt 0:04:53]} Bh3 {[%emt 0:04:50]} 9. Qc1 {[%emt 0:14:30]} e5 {[%emt 0:09:38]} 10. Nd5 {[%emt 0:14:41]} Rc8 {[%emt 0:02:04]} 11. Bxh3 {[%emt 0:01:39]} Qxh3 {[%emt 0:00:07]} 12. Ng5 {[%emt 0:00:28]} Qg4 {[%emt 0:10:40]} 13. f4 {[%emt 0:02:07]} Nf6 {[%emt 0:33:15]} 14. fxe5 {[%emt 0:09:33]} Nxd5 {[%emt 0:00:29]} 15. cxd5 {[%emt 0:05:16]} Nd4 {[%emt 0:00:12]} 16. Bxd4 {[%emt 0:04:20]} cxd4 {[%emt 0:02:12]} 17. Qa3 {[%emt 0:02:47]} O-O {[%emt 0:00:58]} 18. Nxf7 {[%emt 0:02:47]} Rxf7 {[%emt 0:12:36]} 19. Rxf7 {[%emt 0:08:09]} Kxf7 {[%emt 0:00:04]} 20. Qxd6 {[%emt 0:00:23]} Rf8 {[%emt 0:03:41]} 21. e6+ {[%emt 0:02:07]} Kg8 {[%emt 0:00:07]} 22. e7 {[%emt 0:00:15]} Re8 {[%emt 0:00:22]} 23. Qd8 {[%emt 0:00:49]} Qc8 {[%emt 0:03:27]} 24. Qxc8 {[%emt 0:00:11]} Rxc8 {[%emt 0:00:04]} 25. d6 {[%emt 0:00:05]} d3 {[%emt 0:00:59]} 26. d7 {[%emt 0:00:12]} 1-0

[Event "7th Iberoamerican-ch 2019"]
[Site "Linares"]
[Date "2019.08.12"]
[Round "3.27"]
[White "Fernandez Ayuso, Sergio"]
[Black "Valenzuela Gomez, Fernando"]
[Result "0-1"]
[ECO "B08"]
[WhiteElo "2173"]
[BlackElo "2394"]
[Annotator "NA"]
[PlyCount "72"]
[EventDate "2019.08.10"]
[EventType "swiss"]
[EventCountry "ESP"]
[SourceTitle "playchess.com"]
[Source "ChessBase"]
[SourceQuality "1"]
[TimeControl "5400+30"]

1. d4 {[%emt 0:00:00]} g6 {[%emt 0:00:00]} 2. Nf3 {[%emt 0:00:00]} Bg7 {[%emt 0:00:00]} 3. e4 {[%emt 0:00:00]} d6 {[%emt 0:00:03]} 4. Be2 {[%emt 0:00:13]} Nf6 {[%emt 0:00:16]} 5. Nc3 {[%emt 0:00:05]} O-O {[%emt 0:00:41]} 6. O-O {[%emt 0:00:46]} Nc6 {[%emt 0:00:16]} 7. h3 {[%emt 0:00:28]} a6 {[%emt 0:00:06]} 8. a4 {[%emt 0:02:04]} b6 {[%emt 0:01:47]} 9. Be3 {[%emt 0:01:10]} e6 {[%emt 0:01:41]} 10. Rb1 {[%emt 0:00:25]} Nb4 {[%emt 0:04:04]} 11. Ne1 {[%emt 0:05:58]} Bb7 {[%emt 0:04:26]} 12. Nd3 {[%emt 0:14:31]} a5 {[%emt 0:01:26]} 13. f3 {[%emt 0:01:06]} Nh5 {[%emt 0:03:12]} 14. Qd2 {[%emt 0:02:15]} e5 {[%emt 0:12:35]} 15. dxe5 {[%emt 0:08:11]} dxe5 {[%emt 0:00:07]} 16. Nb5 {[%emt 0:00:29]} Qe7 {[%emt 0:03:15]} 17. Rfd1 {[%emt 0:09:35]} Rad8 {[%emt 0:02:53]} 18. Qc3 {[%emt 0:03:12]} c5 {[%emt 0:15:01]} 19. Nxb4 {[%emt 0:10:07]} axb4 {[%emt 0:00:51]} 20. Qe1 {[%emt 0:00:06]} Nf4 {[%emt 0:01:33]} 21. Bf1 {[%emt 0:03:11]} Bc8 {[%emt 0:02:03]} 22. Rxd8 {[%emt 0:01:13]} Rxd8 {[%emt 0:03:28]} 23. Rd1 {[%emt 0:00:05]} Bh6 {[%emt 0:10:44]} 24. Rxd8+ {[%emt 0:02:06]} Qxd8 {[%emt 0:00:04]} 25. Kh2 {[%emt 0:00:09]} Bg5 {[%emt 0:00:56]} 26. Qc1 {[%emt 0:05:11]} Ne6 {[%emt 0:02:15]} 27. Bxg5 {[%emt 0:01:25]} Nxg5 {[%emt 0:00:09]} 28. Qe3 {[%emt 0:02:17]} h5 {[%emt 0:06:07]} 29. Qd3 {[%emt 0:02:52]} Qf6 {[%emt 0:01:05]} 30. Qd2 {[%emt 0:03:22]} Bxh3 {[%emt 0:02:17]} 31. Nc7 {[%emt 0:00:06]} Nxf3+ {[%emt 0:01:40]} 32. gxf3 {[%emt 0:00:09]} Bxf1 {[%emt 0:00:08]} 33. Qd1 {[%emt 0:02:48]} Qf4+ {[%emt 0:05:48]} 34. Kg1 {[%emt 0:00:04]} Bc4 {[%emt 0:01:29]} 35. Nd5 {[%emt 0:02:45]} Bxd5 {[%emt 0:00:36]} 36. exd5 {[%emt 0:00:05]} Qd4+ {[%emt 0:00:44]} 0-1

[Event "7th Iberoamerican-ch 2019"]
[Site "Linares"]
[Date "2019.08.12"]
[Round "3.28"]
[White "Sanchez Jerez, Emilio Miguel"]
[Black "Vega Gutierrez, Sabrina"]
[Result "0-1"]
[ECO "B23"]
[WhiteElo "2232"]
[BlackElo "2385"]
[Annotator "NA"]
[PlyCount "68"]
[EventDate "2019.08.10"]
[EventType "swiss"]
[EventCountry "ESP"]
[SourceTitle "playchess.com"]
[Source "ChessBase"]
[SourceQuality "1"]
[TimeControl "5400+30"]

1. e4 {[%emt 0:00:00]} c5 {[%emt 0:00:00]} 2. Nc3 {[%emt 0:00:00]} e6 {[%emt 0:00:07]} 3. Nf3 {[%emt 0:03:45]} Nc6 {[%emt 0:00:20]} 4. Bb5 {[%emt 0:02:18]} Nge7 {[%emt 0:01:18]} 5. O-O {[%emt 0:00:53]} a6 {[%emt 0:00:24]} 6. Bxc6 {[%emt 0:00:21]} Nxc6 {[%emt 0:00:09]} 7. d4 {[%emt 0:00:24]} cxd4 {[%emt 0:00:10]} 8. Nxd4 {[%emt 0:00:08]} d6 {[%emt 0:11:09]} 9. Nxc6 {[%emt 0:01:22]} bxc6 {[%emt 0:00:10]} 10. Qf3 {[%emt 0:00:04]} Rb8 {[%emt 0:15:31]} 11. Qg3 {[%emt 0:03:36]} h5 {[%emt 0:04:51]} 12. h4 {[%emt 0:19:12]} e5 {[%emt 0:06:51]} 13. f4 {[%emt 0:05:35]} Bg4 {[%emt 0:11:08]} 14. fxe5 {[%emt 0:06:28]} dxe5 {[%emt 0:04:34]} 15. Qxe5+ {[%emt 0:02:51]} Be7 {[%emt 0:01:48]} 16. Bg5 {[%emt 0:38:13]} f6 {[%emt 0:00:50]} 17. Bxf6 {[%emt 0:03:08]} gxf6 {[%emt 0:00:11]} 18. Rxf6 {[%emt 0:00:17]} Rb4 {[%emt 0:04:41]} 19. Rxc6 {[%emt 0:02:52]} Qd4+ {[%emt 0:01:55]} 20. Qxd4 {[%emt 0:00:06]} Rxd4 {[%emt 0:00:08]} 21. Rxa6 {[%emt 0:04:41]} O-O {[%emt 0:03:34]} 22. Rf1 {[%emt 0:00:56]} Rxf1+ {[%emt 0:04:30]} 23. Kxf1 {[%emt 0:00:02]} Bxh4 {[%emt 0:00:12]} 24. Kg1 {[%emt 0:03:00]} Rd2 {[%emt 0:03:06]} 25. Nd5 {[%emt 0:01:18]} Kg7 {[%emt 0:06:40]} 26. Ra7+ {[%emt 0:00:33]} Kg6 {[%emt 0:00:17]} 27. Nf4+ {[%emt 0:00:37]} Kg5 {[%emt 0:00:53]} 28. Nh3+ {[%emt 0:00:45]} Bxh3 {[%emt 0:15:23]} 29. Ra5+ {[%emt 0:00:26]} Kg4 {[%emt 0:00:06]} 30. gxh3+ {[%emt 0:00:34]} Kxh3 {[%emt 0:00:04]} 31. Ra3+ {[%emt 0:00:31]} Bg3 {[%emt 0:00:23]} 32. Kf1 {[%emt 0:00:32]} Rf2+ {[%emt 0:01:06]} 33. Ke1 {[%emt 0:00:28]} Kg2 {[%emt 0:01:24]} 34. e5 {[%emt 0:00:33]} Rf3+ {[%emt 0:01:05]} 0-1